Cogmind - Beta 10.2 @@@ ROGUE MODE // 2021.12.09 @ 20:00:02 Player: DaddyWalrus Result: Destroyed self with Grenade Launcher Performance ------------- Evolutions (0) 0 Regions Visited (2) 400 Robots Destroyed (18) 90 Value Destroyed (542) 542 Prototype IDs (4) 80 Alien Tech Used (0) 0 Bonus (0) 0 TOTAL SCORE: 1112 Bonus ------- None Cogmind --------- Core Integrity 0/250 Matter 211/300 Energy 217/250 System Corruption 0% Temperature Cool (0) Movement Rolling (100) Ox2 Location -10/Mines Parts ------- > --- POWER (1) -------- Ion Engine > --- PROPULSION (2) --- Wheel Wheel > --- UTILITY (2) ------ Large Storage Unit High-capacity Storage Unit > --- WEAPON (2) ------- Light Assault Rifle Grenade Launcher > --- INVENTORY (18) --- Light Nuclear Core Light Treads Light Treads Aluminum Leg Aluminum Leg Wheel Wheel Heat Sink Small Storage Unit Large Storage Unit Large Matter Pod (148) Signal Interpreter Targeting Computer Core Shielding Hacking Suite Light Cannon Peak State ------------ > --- POWER ------------ Light Nuclear Core > --- PROPULSION ------- Light Treads Wheel > --- UTILITY ---------- Large Storage Unit Large Storage Unit > --- WEAPON ----------- Beam Cannon Light Cannon > --- INVENTORY -------- Ion Engine Light Nuclear Core Light Treads Aluminum Leg Aluminum Leg Wheel Wheel Wheel Heat Sink Small Storage Unit Large Matter Pod Signal Interpreter Targeting Computer Core Shielding Hacking Suite Grenade Launcher [Rating: 11] Favorites ----------- Power Light Nuclear Core Engine Ion Engine Power Core Light Nuclear Core Propulsion Wheel Treads Light Treads Wheel Wheel Utility Large Storage Unit Storage Large Storage Unit Weapon Light Cannon Energy Gun Medium Laser Energy Cannon Beam Cannon Ballistic Gun Assault Rifle Ballistic Cannon Light Cannon Launcher Grenade Launcher Build | -11 -10 -10 ------- Run | Scr Mat Min Slots Evolved . | . . . Power . | . . . Propulsion . | . . . Utility . | . . . Weapon . | . . . Parts Attached 22 | 6 9 7 Power 5 | 1 2 2 Engine 3 | 1 1 1 Core 2 | . 1 1 Reactor . | . . . Propulsion 6 | 2 2 2 Treads 1 | . 1 . Leg . | . . . Wheel 5 | 2 1 2 Hover . | . . . Flight . | . . . Utility 4 | 1 2 1 Device . | . . . Storage 4 | 1 2 1 Processor . | . . . Hackware . | . . . Protection . | . . . Artifact . | . . . Weapon 7 | 2 3 2 Energy Gun 2 | 1 1 . Energy Cannon 1 | . 1 . Ballistic Gun 2 | 1 . 1 Ballistic Cannon 1 | . 1 . Launcher 1 | . . 1 Special Weapon . | . . . Impact Weapon . | . . . Slashing Weapon . | . . . Piercing Weapon . | . . . Special Melee Weapon . | . . . Unidentified Prototypes . | . . . Parts Lost 6 | . 3 3 Power 1 | . . 1 Propulsion 1 | . . 1 Utility . | . . . Weapon 4 | . 3 1 Highest Loss Streak 2 | . 2 2 Average Slot Usage (%) 98 | . 99 96 Engine 5 | . 7 . Core 8 | . 6 13 Treads 12 | . 11 13 Wheel 15 | . 16 13 Storage 27 | . 27 28 Energy Gun 4 | . 6 . Energy Cannon 7 | . 6 7 Ballistic Gun 6 | . 7 4 Ballistic Cannon 8 | . 6 12 Naked Turns . | . . . Heaviest Build 59 | 13 43 59 Greatest Support 26 | 26 26 20 Greatest Overweight (x) 5 | . 4 5 Average Overweight (x) 3 | . 3 4 Largest Inventory Capacity 18 | 6 16 18 Average Capacity 15 | 5 15 17 Most Carried 17 | 6 16 17 Average Carried 13 | 3 13 15 Final Capacity 18 | 6 16 18 Final Carried 16 | 6 16 16 Class Distribution -------------------- 100% | Mutant Dominant Class ---------------- Mutant | -10/Materials Mutant | -10/Mines Resources | -11 -10 -10 ----------- Run | Scr Mat Min Matter Collected 805 | 278 361 166 Remotely . | . . . Salvage Created 651 | 80 464 107 Parts 40 | . 35 5 Haulers Intercepted . | . . . Recyclers Shooed . | . . . Parts Field Recycled . | . . . Retrieved Matter . | . . . Parts Self-Destructed . | . . . Prevented . | . . . Kills | -11 -10 -10 ------- Run | Scr Mat Min Combat Hostiles Destroyed 12 | . 7 5 Guns 5 | . 5 . Cannons 6 | . 2 4 AOE 1 | . . 1 Classes Destroyed 8 | 1 6 1 Worker 1 | . 1 . Builder 1 | . 1 . Recycler 1 | 1 . . Mechanic 1 | . 1 . Operator 1 | . 1 . Watcher 2 | . 2 . Grunt 11 | . 7 4 Assembled 1 | . . 1 Best Kill Streak 3 | 1 3 2 Combat Bots Only 2 | . 2 2 Max Kills in Single Turn 1 | 1 1 1 Gunslinging . | . . . Exploded 1 | . . 1 Melee . | . . . Uniques/NPCs Destroyed . | . . . Combat | -11 -10 -10 -------- Run | Scr Mat Min Damage Taken 1117 | . 524 593 Core 262 | . 131 131 Absorbed by Shields . | . . . Core Remaining (%) 100 | 100 . . Volleys Fired 87 | 6 50 31 Largest 2 | 2 2 2 Hottest 95 | 70 95 95 Shots Fired 156 | 12 98 46 Gun 91 | 12 76 3 Cannon 62 | . 22 40 Launcher 3 | . . 3 Special . | . . . Kinetic 87 | 6 50 31 Thermal 66 | 6 48 12 Explosive 3 | . . 3 Electromagnetic . | . . . Robot Hit Streak 7 | 7 7 5 Robot Miss Streak 6 | 2 6 1 Penetration Max . | . . . Secondary Targets 1 | . 1 . Max Gunslinging Chain 1 | . 1 . Shots Hit Robots 98 | 9 58 31 Core Hits 33 | 2 21 10 Critical Hits 1 | . 1 . Critical Kills 1 | . 1 . Critical Parts Destroyed . | . . . Melee Attacks . | . . . Impact . | . . . Slashing . | . . . Piercing . | . . . Sneak Attacks . | . . . Combat Hostiles . | . . . Follow-up Attacks . | . . . Damage Inflicted 1468 | 96 757 615 Guns 718 | 96 614 8 Cannons 582 | . 143 439 Explosions 148 | . . 148 Melee . | . . . Ramming 20 | . . 20 Kinetic 667 | 35 288 344 Thermal 633 | 61 469 103 Explosive 148 | . . 148 Electromagnetic . | . . . Impact . | . . . Slashing . | . . . Piercing . | . . . Highest Corruption . | . . . Average Corruption . | . . . Corruption Purged . | . . . Overload Shots . | . . . Overflow Damage 7 | . . 7 Projectiles . | . . . Explosions 7 | . . 7 Melee . | . . . Knockbacks 10 | . . 10 Impact . | . . . Kinetic 9 | . . 9 Secondary 1 | . . 1 Self-Inflicted Damage 48 | . . 48 Shots 1 | . . 1 Rammed 1 | . . 1 Targets Rammed 1 | . . 1 Kicked . | . . . Crushed . | . . . Highest Temperature 441 | 45 218 441 Average Temperature 93 | 20 73 142 Received Heat Transfer 540 | . 303 237 Effects 3 | . . 3 Interference 2 | . . 2 Matter Decay 1 | . . 1 Siege Activations . | . . . Robots Corrupted . | . . . Combat Hostiles . | . . . Parts Fried . | . . . Impact Corruptions . | . . . Robots Melted . | . . . Combat Hostiles . | . . . Parts Melted . | . . . Heat Transferred 1702 | 185 1295 222 Parts Sabotaged . | . . . Parts Stolen . | . . . Parts Stripped . | . . . Power Chain Reactions . | . . . Missiles Intercepted . | . . . Alert | -11 -10 -10 ------- Run | Scr Mat Min Peak Influence 146 | 5 146 108 Initial 13 | . 3 13 Average 60 | 1 62 67 Maximum Alert Level . | . . . Low Security (%) 100 | 100 100 100 Level 1 . | . . . Level 2 . | . . . Level 3 . | . . . Level 4 . | . . . Level 5 . | . . . High Security . | . . . Max Security . | . . . Squads Dispatched 1 | . 1 . Investigation 1 | . 1 . Extermination . | . . . Reinforcement . | . . . Assault . | . . . Garrison . | . . . Intercept . | . . . Construction Impeded . | . . . Haulers Reinforced . | . . . Stealth | -11 -10 -10 --------- Run | Scr Mat Min Distress Signals . | . . . Communications Jammed . | . . . Distress Signals . | . . . Times Spotted 26 | . 15 11 Peak Tracking Total 18 | . 3 18 Tactical Retreats 2 | . 1 1 Traps | -11 -10 -10 ------- Run | Scr Mat Min Traps Triggered 1 | . 1 . Indirectly . | . . . Trap Hack Attempts . | . . . Triggered . | . . . Disarmed . | . . . Reprogrammed . | . . . Reused . | . . . Traps Extracted . | . . . Installed . | . . . Triggered 1 | . . 1 Machines | -11 -10 -10 ---------- Run | Scr Mat Min Machines Disabled 3 | . 2 1 Max in Single Turn 1 | . 1 1 Machines Sabotaged . | . . . Garrisons Compromised . | . . . Overloaded Fab Kills . | . . . Fab Network Shutdowns . | . . . Hacking | -11 -10 -10 --------- Run | Scr Mat Min Machines Accessed 6 | . 6 . Terminals 6 | . 6 . Fabricators . | . . . Repair Stations . | . . . Recycling Units . | . . . Scanalyzers . | . . . Garrison Access . | . . . Total Hacks 19 | . 19 . Successful 12 | . 12 . Failed 7 | . 7 . Catastrophic 2 | . 2 . Database Lockouts . | . . . Manual 15 | . 15 . Terminals 19 | . 19 . Fabricators . | . . . Repair Stations . | . . . Recycling Units . | . . . Scanalyzers . | . . . Garrison Access . | . . . Terminal Hacks 7 | . 7 . Part Schematic 1 | . 1 . Prototype ID Bank 3 | . 3 . Branch Access Points 1 | . 1 . Unreport Threat 2 | . 2 . Fabricator Hacks . | . . . Repair Station Hacks . | . . . Recycling Unit Hacks . | . . . Scanalyzer . | . . . Garrison Access Hacks . | . . . Unauthorized Hacks 5 | . 5 . Terminals 5 | . 5 . Botnet 5 | . 5 . Fabricators . | . . . Repair Stations . | . . . Recycling Units . | . . . Scanalyzers . | . . . Garrison Access . | . . . Data Cores Recovered 1 | . 1 . Used 1 | . 1 . Hacking Detections 3 | . 3 . Full Trace Events 2 | . 2 . Feedback Events . | . . . Feedback Blocked . | . . . Robot Schematics Acquired . | . . . Robots Built . | . . . Matter . | . . . Time . | . . . Total Robot Build Rating . | . . . Part Schematics Acquired 1 | . 1 . Parts Built . | . . . Matter . | . . . Time . | . . . Total Part Build Rating . | . . . Parts Repaired . | . . . Time . | . . . Parts Recycled . | . . . Recycled Matter . | . . . Retrieved Matter . | . . . Retrieved Components . | . . . Parts Scanalyzed . | . . . Part Schematics Acquired . | . . . Parts Damaged . | . . . Bothacking | -11 -10 -10 ------------ Run | Scr Mat Min Used RIF Installer . | . . . Robots Hacked . | . . . Non-combat . | . . . Combat . | . . . Robot Hacks Applied . | . . . Relay Couplers Released . | . . . Robots Rewired . | . . . Allies Hacked . | . . . Hacks Repelled . | . . . Allies | -11 -10 -10 -------- Run | Scr Mat Min Total Allies . | . . . Largest Group . | . . . Highest-Rated Group . | . . . Highest-Rated Ally . | . . . Total Orders . | . . . Ally Attacks . | . . . Total Damage . | . . . Kills . | . . . Allies Corrupted . | . . . Allies Melted . | . . . Intel | -11 -10 -10 ------- Run | Scr Mat Min Robot Analysis Total . | . . . Derelict Logs Recovered 2 | . . 2 Drone Launches . | . . . Drone Recoveries . | . . . Exploration | -11 -10 -10 ------------- Run | Scr Mat Min Turns Passed 1531 | 86 966 479 Spaces Moved 1042 | 60 677 305 Core 2 | 2 . . Treads 19 | . . 19 Legs . | . . . Wheels 1021 | 58 677 286 Hover . | . . . Flight . | . . . Fastest Speed 50 | 50 90 100 Average Speed 117 | 88 115 128 Slowest Speed 200 | 90 120 200 Overloaded Moves . | . . . Propulsion Burnouts . | . . . Robots Hopped . | . . . Cave-ins Triggered . | . . . Exploration Rate (%) 49 | 4 94 51 Regions Visited 2 Branch Regions 1 Pre-discovered Areas . | . . . Known Exits Taken 1 | . 1 . Unknown Exits Taken 1 | 1 . . Scrap Searched 1 | . . 1 Spaces Dug . | . . . Terrain Destroyed 18 | . . 18 Melee . | . . . Projectile . | . . . AOE 18 | . . 18 Terrain Rammed . | . . . Walls Destroyed . | . . . Machines Disabled . | . . . Actions | -11 -10 -10 --------- Run | Scr Mat Min Total 1198 | 77 772 349 Wait 10 | . 9 1 Move 1040 | 59 676 305 Hop . | . . . Pick Up 25 | 6 17 2 Fast Attach 9 | 6 2 1 Attach 5 | . 3 2 Detach . | . . . Swap 8 | . 4 4 Drop 10 | . 8 2 Fire 87 | 6 50 31 Melee . | . . . Ram 1 | . . 1 Kick . | . . . Crush . | . . . Escape Stasis . | . . . Rewire 3 | . 3 . Trap . | . . . Miscellaneous . | . . . Route ------- -11/Scrapyard -10/Materials (discovered 4 exits: [*Mat x3] / *Min) -10/Mines History --------- Turn | Location | Event 20 | -11/Scrapyard | Discovered new exit (range 16) 87 | -11/Scrapyard | Entered Materials 309 | -10/Materials | Build established: Mutant 329 | -10/Materials | Identified exit to Mines 389 | -10/Materials | Discovered new exit (range 6) 434 | -10/Materials | Discovered new exit (range 15) 569 | -10/Materials | Core integrity fell below 50% 700 | -10/Materials | Discovered new exit (range 6) 1053 | -10/Materials | Entered Mines 1234 | -10/Mines | Learned location of 1 exit from Materials 1326 | -10/Mines | Core integrity fell below 20% 1487 | -10/Mines | Assembled infested the area 1492 | -10/Mines | Assisted by a Guerilla fighting off Assembled 1532 | -10/Mines | Destroyed self with Grenade Launcher Last Messages --------------- 01347_ K-01 Serf collects debris. 01349_ Acquired 15 matter. 01350_ K-01 Serf collects debris. 01387_ Acquired Lgt. Assault Rifle. 01390_ Acquired Sml. Storage Unit. 01413_ Slammed into K-01 Serf. 01463_ A derelict is hurriedly installing traps. 01465_ 0N-WWK(g): "Hehe, this'll put a wrench in their mining defense operations..." 01465_ 0N-WWK(g) slips into the shadows. 01475_ Acquired 8 matter. 01478_ Acquired 6 matter. 01480_ Acquired Wheel. 01487_ ALERT: Infestation in the mines, dispatching Demolisher response squad. 01508_ as-45753 destroyed. 01509_ Lgt. Nuclear Core destroyed. 01511_ Destroyed Asb. Hover Unit. 01515_ U-05 Engineer lays Concrete. 01517_ U-05 Engineer destroyed. Map ----- +----------------------------------------------------+ | | | | | | | | | | | | | | | | | | | | | | | | | | | | | | | | | | | | | ????????????????????????????????????? | | ????????????????????????????????????? | | ????????????????????????????????????? | | ????????????????????????????????????? | | ???????????????####?????????????????? | | ?????#???????### ####??????????????? | | ?????# ### # ##?????????????? | | ?????# @ a #??????##?????? | | ??????# ### ## a #????## ##????? | | ???????????######## ##????# #????? | | ??????????????????# #????## #????? | | ??????????????????# #???## ####??? | | ??????????????????# #???# #### | | ???????????????##?# #???# # % | | ??????????????## ?# #####= # | | ?????????????## ## *%| # | | ????????????## # ####!= = | | ????????????# #??# = | | ????????????# # ##?## # *## | | ????????????# ##?# #? | | ?????? #????## #?# ###? | | ?????? ##### ### #??? | | ???????# """" ### ##??? | | ???????# """" #?## ###???? | | ???????##### """" #??####?????? | | ???????????# #???????????? | | ???????????## #???????????? | | ????????????# #???????????? | | ????? ## ##???????????? | | ?????# ####= ##????????????? | | ?????## ## =##?????????????# | | ??????## #?# ## #?#######?????## | +----------------------------------------------------+ Best States ------------- Heat Dissipation 25 Energy Generation 14 Energy Capacity 250 Matter Stores 300 Matter Capacity 300 Sight Range 16 Terrain Scan Density 10 Evasion (%) 42 Recoil Reduction 1 Item Schematics ----------------- Hcp. Storage Unit | -10/Materials | Hacked Robot Schematics ------------------ None Fabricated ------------ Nothing Alien Tech Used ----------------- None Achievements -------------- None Challenges ------------ None Game ------ Seed LongswordDecoderFirepult Manual? 0 Play Time 00:15:58 Cumulative 92.5 hours Start 2021.12.09 @ 19:47:28 End 2021.12.09 @ 20:00:02 Sessions 1 Manual Loads 0 Difficulty Rogue Special Mode None Game No. 34 Rogue 34 Adventurer 0 Explorer 0 Win Type - Total 1 Types 1/0/0/0/0/0/0/0/0 Lore% 40 Gallery% 55 Achievement% 42 Wizard Run 0 Options --------- ASCII 1 Keyboard 1 Movement Numpad Keybinds 0 Fullscreen 1 Font 36/Smallcaps Map View 76x50 Tactical HUD 1 Map Filters NONE Filters NONE Steam 1 RUN: aa3271a2-a5ce-410d-98ff-499b7cc076fb